fUSD/lending_fUSD_20250202
["ID","MTS","AMOUNT","RATE_DAILY","PERIOD"]
[351289988,1738506602649,-500.0,0.00011232,2]
[351289989,1738506602675,-500.0,0.00011232,2]
[351289990,1738506602703,-649.28,0.00011232,2]
[351289991,1738506602731,-500.0,0.00011232,2]
[351289992,1738506602761,-374.71,0.00011232,2]
[351289993,1738506602788,-1350.5,0.00011232,2]
[351289994,1738506602816,-800.62,0.00011232,2]
[351289995,1738506602843,-500.0,0.00011232,2]
[351289996,1738506602870,-500.0,0.00011232,2]
[351289997,1738506602901,-500.0,0.00011232,2]
[351289998,1738506602933,-500.0,0.00011232,2]
[351289999,1738506602960,-6658.58,0.00011232,2]
[351290000,1738506602989,-500.0,0.00011232,2]
[351290001,1738506603017,-500.0,0.00011232,2]
[351290002,1738506603045,-500.0,0.00011232,2]
[351290003,1738506603074,-500.0,0.00011232,2]
[351290004,1738506603102,-500.0,0.00011232,2]
[351290005,1738506603131,-500.0,0.00011232,2]
[351290006,1738506603161,-500.0,0.00011232,2]
[351290007,1738506603188,-500.0,0.00011232,2]
[351290008,1738506603216,-500.0,0.00011232,2]
[351290009,1738506603246,-500.0,0.00011232,2]
[351290010,1738506603275,-955.04,0.00011232,2]
[351290011,1738506603303,-594.87,0.00011232,2]
[351290012,1738506603329,-500.0,0.00011232,2]
[351290013,1738506603356,-3582.4,0.00011232,2]
[351290014,1738506603383,-500.0,0.00011232,2]
[351290015,1738506603415,-500.0,0.00011232,2]
[351290016,1738506603441,-500.0,0.00011232,2]
[351290017,1738506603469,-500.0,0.00011232,2]
[351290018,1738506603497,-603.39,0.00011232,2]
[351290019,1738506603527,-500.0,0.00011232,2]
[351290020,1738506603556,-500.0,0.00011232,2]
[351290021,1738506603583,-7957.34,0.00011232,2]
[351290022,1738506603611,-500.0,0.00011232,2]
[351290023,1738506603639,-762.65,0.00011232,2]
[351290024,1738506603667,-500.0,0.00011232,2]
[351290025,1738506603870,-1262.26,0.00011232,2]
[351290026,1738506603899,-500.0,0.00011232,2]
[351290027,1738506603929,-530.19,0.00011232,2]
[351290028,1738506603957,-500.0,0.00011232,2]
[351290029,1738506603984,-500.0,0.00011232,2]
[351290030,1738506604014,-534.35,0.00011232,2]
[351290031,1738506604041,-606.59,0.00011232,2]
[351290032,1738506604068,-500.0,0.00011232,2]
[351290033,1738506604096,-500.0,0.00011232,2]
[351290034,1738506604124,-1593.86,0.00011232,2]
[351290035,1738506604151,-500.0,0.00011232,2]
[351290036,1738506604177,-500.0,0.00011232,2]
[351290037,1738506604202,-500.0,0.00011232,2]
[351290038,1738506604228,-2238.72,0.00011232,2]
[351290039,1738506604255,-1312.59,0.00011232,2]
[351290040,1738506604281,-500.0,0.00011232,2]
[351290041,1738506604306,-500.0,0.00011232,2]
[351290042,1738506604331,-704.04,0.00011232,2]
[351290043,1738506604358,-1575.06,0.00011232,2]
[351290044,1738506604384,-500.0,0.00011232,2]
[351290045,1738506604410,-7111.9,0.00011232,2]
[351290046,1738506604435,-2898.5108,0.00011269,2]
[351290047,1738506604461,-2085.23,0.00011281,2]
[351290048,1738506604486,-9999.99,0.00011281,2]
[351290049,1738506604515,-150.99,0.00011281,2]
[351290050,1738506604541,-150.99,0.00011281,2]
[351290051,1738506604567,-499.99,0.00011281,2]
[351290052,1738506604591,-299.99,0.00011281,2]
[351290053,1738506604616,-4382.46,0.00011281,2]
[351290054,1738506604644,-932.12,0.00011281,2]
[351290055,1738506604671,-9999.99,0.00011281,2]
[351290056,1738506604696,-999.99,0.00011281,2]
[351290057,1738506604720,-9999.99,0.00011281,2]
[351290058,1738506604747,-2400.0,0.000113,4]
[351290059,1738506604772,-4208.74536201,0.00011336,2]
[351290060,1738506604801,-500.0,0.00011367,2]
[351290061,1738506604827,-500.0,0.00011368,2]
[351290062,1738506604852,-500.0,0.00011368,2]
[351290063,1738506604879,-500.0,0.00011368,2]
[351290064,1738506604906,-500.0,0.00011368,2]
[351290065,1738506604937,-533.89,0.00011368,2]
[351290066,1738506604972,-500.0,0.00011368,2]
[351290067,1738506604998,-500.0,0.00011368,2]
[351290068,1738506605023,-500.0,0.00011368,2]
[351290069,1738506605047,-500.0,0.00011368,2]
[351290070,1738506605071,-500.0,0.00011368,2]
[351290071,1738506605095,-500.0,0.00011368,2]
[351290072,1738506605122,-500.0,0.00011368,2]
[351290073,1738506605150,-500.0,0.00011368,2]
[351290074,1738506605175,-500.0,0.00011368,2]
[351290075,1738506605201,-500.0,0.00011368,2]
[351290076,1738506605228,-500.0,0.00011368,2]
[351290077,1738506605255,-500.0,0.00011368,2]
[351290078,1738506605280,-500.0,0.00011368,2]
[351290079,1738506605307,-500.0,0.00011368,2]
[351290080,1738506605331,-500.0,0.00011368,2]
[351290081,1738506605357,-633.74,0.00011368,2]
[351290082,1738506605382,-500.0,0.00011368,2]
[351290083,1738506605409,-500.0,0.00011368,2]
[351290084,1738506605434,-500.0,0.00011368,2]
[351290085,1738506605458,-500.0,0.00011368,2]
[351290086,1738506605483,-500.0,0.00011368,2]
[351290087,1738506605508,-500.3,0.00011368,2]
[351290088,1738506605534,-500.0,0.00011368,2]
[351290089,1738506605560,-500.0,0.00011368,2]
[351290090,1738506605585,-500.0,0.00011368,2]
[351290091,1738506605611,-500.0,0.00011368,2]
[351290092,1738506605637,-537.88430528,0.00011368,2]
[351290093,1738506605662,-500.0,0.00011368,2]
[351290094,1738506605688,-202.55,0.00011368,2]
[351290095,1738506605713,-500.0,0.00011368,2]
[351290096,1738506605739,-500.0,0.00011368,2]
[351290097,1738506605765,-548.07,0.00011368,2]
[351290098,1738506605791,-175.16,0.00011368,2]
[351290099,1738506605818,-609.86,0.00011368,2]
[351290100,1738506605844,-500.0,0.00011368,2]
[351290101,1738506605869,-500.0,0.00011368,2]
[351290102,1738506605895,-465.22,0.00011368,2]
[351290103,1738506605924,-500.0,0.00011368,2]
[351290104,1738506605950,-1169.34,0.00011368,2]
[351290105,1738506605977,-500.0,0.00011368,2]
[351290106,1738506606003,-384.74,0.00011368,2]
[351290107,1738506606029,-276.62,0.00011368,2]
[351290108,1738506606054,-226.64,0.00011368,2]
[351290109,1738506606079,-500.0,0.00011368,2]
[351290110,1738506606106,-500.0,0.00011368,2]
[351290111,1738506606130,-500.0,0.00011368,2]
[351290112,1738506606155,-648.83,0.00011368,2]
[351290113,1738506606178,-507.49,0.00011368,2]
[351290114,1738506606201,-500.0,0.00011368,2]
[351290115,1738506606225,-500.0,0.00011368,2]
[351290116,1738506606248,-421.95,0.00011368,2]
[351290117,1738506606271,-601.6,0.00011368,2]
[351290118,1738506606295,-500.0,0.00011368,2]
[351290119,1738506606318,-500.0,0.00011368,2]
[351290120,1738506606342,-500.0,0.00011368,2]
[351290121,1738506606366,-500.0,0.00011368,2]
[351290122,1738506606391,-500.0,0.00011368,2]
[351290123,1738506606418,-500.0,0.00011368,2]
[351290124,1738506606452,-295.49,0.00011368,2]
[351290125,1738506606480,-500.0,0.00011368,2]
[351290126,1738506606507,-500.0,0.00011368,2]
[351290127,1738506606534,-500.0,0.00011368,2]
[351290128,1738506606560,-500.0,0.00011368,2]
[351290129,1738506606587,-500.0,0.00011368,2]
[351290130,1738506606869,-500.0,0.00011368,2]
[351290131,1738506606894,-500.0,0.00011368,2]
[351290132,1738506606925,-500.0,0.00011368,2]
[351290133,1738506606952,-500.0,0.00011368,2]
[351290134,1738506606978,-500.0,0.00011368,2]
[351290135,1738506607004,-500.0,0.00011368,2]
[351290136,1738506607030,-500.0,0.00011368,2]
[351290137,1738506607055,-162.12,0.00011368,2]
[351290138,1738506607079,-500.0,0.00011368,2]
[351290139,1738506607105,-500.0,0.00011368,2]
[351290140,1738506607131,-500.0,0.00011368,2]
[351290141,1738506607156,-500.0,0.00011368,2]
[351290142,1738506607183,-601.63,0.00011368,2]
[351290143,1738506607210,-1357.53,0.00011368,2]
[351290144,1738506607233,-500.0,0.00011368,2]
[351290145,1738506607263,-500.0,0.00011368,2]
[351290146,1738506607288,-500.0,0.00011368,2]
[351290147,1738506607313,-500.0,0.00011368,2]
[351290148,1738506607337,-500.0,0.00011368,2]
[351290149,1738506607362,-500.0,0.00011368,2]
[351290150,1738506607388,-500.0,0.00011368,2]
[351290151,1738506607413,-500.0,0.00011368,2]
[351290152,1738506607439,-500.0,0.00011368,2]
[351290153,1738506607463,-500.0,0.00011368,2]
[351290154,1738506607488,-500.0,0.00011368,2]
[351290155,1738506607513,-500.0,0.00011368,2]
[351290156,1738506607537,-500.0,0.00011368,2]
[351290157,1738506607563,-500.0,0.00011368,2]
[351290158,1738506607587,-500.0,0.00011368,2]
[351290159,1738506607613,-500.0,0.00011368,2]
[351290160,1738506607638,-500.0,0.00011368,2]
[351290161,1738506607664,-500.0,0.00011368,2]
[351290162,1738506607694,-500.0,0.00011368,2]
[351290163,1738506607719,-1058.01,0.00011368,2]
[351290164,1738506607745,-3099.37,0.00011368,2]
[351290165,1738506607771,-500.0,0.00011368,2]
[351290166,1738506607797,-500.0,0.00011368,2]
[351290167,1738506607823,-500.0,0.00011368,2]
[351290168,1738506607850,-192.85,0.00011368,2]
[351290169,1738506607879,-500.0,0.00011368,2]
[351290170,1738506607907,-500.0,0.00011368,2]
[351290171,1738506607939,-500.0,0.00011368,2]
[351290172,1738506607966,-293.50239167,0.00011368,2]
[351290173,1738506607993,-500.0,0.00011368,2]
[351290174,1738506608020,-257.30237842,0.00011368,2]
[351290175,1738506608045,-500.0,0.00011368,2]
[351290176,1738506608069,-500.0,0.00011369,2]
[351290177,1738506608095,-608.53,0.00011369,2]
[351290178,1738506608121,-500.0,0.00011369,2]
[351290179,1738506608146,-500.0,0.00011369,2]
[351290180,1738506608177,-573.01,0.00011369,2]
[351290181,1738506608202,-500.0,0.00011369,2]
[351290182,1738506608229,-500.0,0.00011369,2]
[351290183,1738506608255,-500.0,0.00011369,2]
[351290184,1738506608282,-500.0,0.00011369,2]
[351290185,1738506608307,-500.0,0.00011369,2]
[351290186,1738506608332,-500.0,0.00011369,2]
[351290187,1738506608357,-500.0,0.00011369,2]
[351290188,1738506608381,-460.12013723,0.00011369,2]
[351290189,1738506608408,-500.0,0.00011369,2]
[351290190,1738506608434,-229.12,0.00011369,2]
[351290191,1738506608459,-500.0,0.00011369,2]
[351290192,1738506608482,-1447.89,0.00011369,2]
[351290193,1738506608508,-1735.29,0.00011369,2]
[351290194,1738506608533,-2420.33,0.00011369,2]
[351290195,1738506608558,-500.0,0.00011369,2]
[351290196,1738506608582,-500.0,0.00011369,2]
[351290197,1738506608607,-500.0,0.00011369,2]
[351290198,1738506608630,-500.0,0.00011369,2]
[351290199,1738506608656,-500.0,0.00011369,2]
[351290200,1738506608682,-500.0,0.00011369,2]
[351290201,1738506608707,-500.0,0.00011369,2]
[351290202,1738506608730,-500.0,0.00011369,2]
[351290203,1738506608756,-500.0,0.00011369,2]
[351290204,1738506608780,-500.0,0.00011369,2]
[351290205,1738506608804,-500.0,0.00011369,2]
[351290206,1738506608828,-500.0,0.00011369,2]
[351290207,1738506608853,-799.65,0.00011369,2]
[351290208,1738506608876,-500.0,0.00011369,2]
[351290209,1738506608900,-500.0,0.00011369,2]
[351290210,1738506608929,-225.06,0.00011369,2]
[351290211,1738506608953,-272.92115516,0.00011369,2]
[351290212,1738506608977,-322.67,0.00011369,2]
[351290213,1738506609004,-1270.8,0.00011369,2]
[351290214,1738506609028,-500.0,0.00011369,2]
[351290215,1738506609052,-500.0,0.00011369,2]
[351290216,1738506609078,-157.82,0.00011369,2]
[351290217,1738506609103,-500.0,0.00011369,2]
[351290218,1738506609127,-199.36,0.00011369,2]
[351290219,1738506609152,-500.0,0.00011369,2]
[351290220,1738506609176,-500.0,0.00011369,2]
[351290221,1738506609200,-500.0,0.00011369,2]
[351290222,1738506609226,-420.94,0.00011369,2]
[351290223,1738506609250,-257.46,0.00011369,2]
[351290224,1738506609274,-500.0,0.00011369,2]
[351290225,1738506609298,-500.0,0.00011369,2]
[351290226,1738506609324,-500.0,0.00011369,2]
[351290227,1738506609349,-301.86,0.00011369,2]
[351290228,1738506609373,-500.0,0.00011369,2]
[351290229,1738506609398,-500.0,0.00011369,2]
[351290230,1738506609424,-500.0,0.00011369,2]
[351290231,1738506609447,-626.12,0.00011369,2]
[351290232,1738506609471,-495.32,0.00011369,2]
[351290233,1738506609497,-201.22,0.00011369,2]
[351290234,1738506609526,-1134.07,0.00011369,2]
[351290235,1738506609552,-500.0,0.00011369,2]
[351290236,1738506609576,-192.956098,0.00011369,2]
[351290237,1738506609602,-500.0,0.00011369,2]
[351290238,1738506609626,-528.06,0.00011369,2]
[351290239,1738506609650,-500.0,0.00011369,2]
[351290240,1738506609678,-500.0,0.00011369,2]
[351290241,1738506609701,-500.0,0.00011369,2]
[351290242,1738506609726,-249.229309,0.00011369,2]
[351290243,1738506609750,-500.0,0.00011369,2]
[351290244,1738506609775,-994.5,0.00011369,2]
[351290245,1738506609798,-500.0,0.00011369,2]
[351290246,1738506609823,-500.0,0.00011369,2]
[351290247,1738506609848,-500.0,0.00011369,2]
[351290248,1738506609871,-500.0,0.00011369,2]
[351290249,1738506609895,-500.0,0.00011369,2]
[351290250,1738506609922,-500.0,0.00011369,2]
[351290251,1738506609946,-500.0,0.00011369,2]
[351290252,1738506609972,-500.0,0.00011369,2]
[351290253,1738506609996,-512.38,0.00011369,2]
[351290254,1738506610026,-524.14,0.00011369,2]
[351290255,1738506610057,-1228.88,0.00011369,2]
[351290256,1738506610084,-349.72,0.00011369,2]
[351290257,1738506610111,-2271.2,0.00011369,2]
[351290258,1738506610139,-500.0,0.00011369,2]
[351290259,1738506610169,-536.3,0.00011369,2]
[351290260,1738506610199,-208.26,0.00011369,2]
[351290261,1738506610228,-500.0,0.00011369,2]
[351290262,1738506610255,-500.0,0.00011369,2]
[351290263,1738506610282,-500.0,0.00011369,2]
[351290264,1738506610310,-500.0,0.00011369,2]
[351290265,1738506610342,-500.0,0.00011369,2]
[351290266,1738506610370,-500.0,0.00011369,2]
[351290267,1738506610400,-4077.82,0.00011369,2]
[351290268,1738506610432,-896.32,0.00011369,2]
[351290269,1738506610464,-578.5,0.00011369,2]
[351290270,1738506610496,-697.23,0.00011369,2]
[351290271,1738506610524,-500.0,0.00011369,2]
[351290272,1738506610556,-1121.42,0.00011369,2]
[351290273,1738506610588,-500.0,0.00011369,2]
[351290274,1738506610618,-500.0,0.00011369,2]
[351290275,1738506610647,-500.0,0.00011369,2]
[351290276,1738506610679,-500.0,0.00011369,2]
[351290277,1738506610711,-500.0,0.00011369,2]
[351290278,1738506610741,-500.0,0.00011369,2]
[351290279,1738506610768,-583.58,0.00011369,2]
[351290280,1738506610799,-500.0,0.00011369,2]
[351290281,1738506610826,-500.0,0.00011369,2]
[351290282,1738506610854,-3116.64,0.00011369,2]
[351290283,1738506610883,-500.0,0.00011369,2]
[351290284,1738506610913,-500.0,0.00011369,2]
[351290285,1738506610941,-500.0,0.00011369,2]
[351290286,1738506610968,-500.0,0.00011369,2]
[351290287,1738506610995,-500.0,0.00011369,2]
[351290288,1738506611027,-5856.03,0.00011369,2]
[351290289,1738506611056,-500.0,0.00011369,2]
[351290290,1738506611081,-500.0,0.00011369,2]
[351290291,1738506611108,-1571.16,0.00011369,2]
[351290292,1738506611135,-500.0,0.00011369,2]
[351290293,1738506611162,-500.0,0.00011369,2]
[351290294,1738506611189,-500.0,0.00011369,2]
[351290295,1738506611215,-500.0,0.00011369,2]
[351290296,1738506611241,-500.0,0.00011369,2]
[351290297,1738506611267,-2437.04,0.00011369,2]
[351290298,1738506611296,-535.97,0.00011369,2]
[351290299,1738506611322,-500.0,0.00011369,2]
[351290300,1738506611347,-500.0,0.00011369,2]
[351290301,1738506611374,-500.0,0.00011369,2]
[351290302,1738506611399,-500.0,0.00011369,2]
[351290303,1738506611427,-500.0,0.00011369,2]
[351290304,1738506611454,-500.0,0.00011369,2]
[351290305,1738506611480,-500.0,0.00011369,2]
[351290306,1738506611507,-1216.64,0.00011369,2]
[351290307,1738506611536,-866.77,0.00011369,2]
[351290308,1738506611563,-1044.03,0.00011369,2]
[351290309,1738506611590,-500.0,0.00011369,2]
[351290310,1738506611618,-500.0,0.00011369,2]
[351290311,1738506611645,-548.52,0.00011369,2]
[351290312,1738506611675,-500.0,0.00011369,2]
[351290313,1738506611703,-500.0,0.00011369,2]
[351290314,1738506611731,-529.53,0.00011369,2]
[351290315,1738506611757,-453.98,0.00011369,2]
[351290316,1738506611783,-500.0,0.00011369,2]
[351290317,1738506611810,-500.0,0.00011369,2]
[351290318,1738506611836,-399.57,0.00011369,2]
[351290319,1738506611863,-500.0,0.00011369,2]
[351290320,1738506611891,-311.62085385,0.00011369,2]
[351290321,1738506611922,-500.0,0.00011369,2]
[351290322,1738506611950,-585.4,0.00011369,2]
[351290323,1738506611977,-500.0,0.00011369,2]
[351290324,1738506612005,-500.0,0.00011369,2]
[351290325,1738506612033,-500.0,0.00011369,2]
[351290326,1738506612061,-733.59,0.00011369,2]
[351290327,1738506612088,-941.22,0.00011369,2]
[351290328,1738506612115,-500.0,0.00011369,2]
[351290329,1738506612142,-500.0,0.00011369,2]
[351290330,1738506612170,-500.0,0.00011369,2]
[351290331,1738506612197,-500.0,0.00011369,2]
[351290332,1738506612222,-649.28,0.00011369,2]
[351290333,1738506612249,-500.0,0.00011369,2]
[351290334,1738506612275,-1350.5,0.00011369,2]
[351290335,1738506612301,-800.62,0.00011369,2]
[351290336,1738506612326,-500.0,0.00011369,2]
[351290337,1738506612352,-500.0,0.00011369,2]
[351290338,1738506612378,-500.0,0.00011369,2]
[351290339,1738506612405,-500.0,0.00011369,2]
[351290340,1738506612436,-6658.58,0.00011369,2]
[351290341,1738506612463,-500.0,0.00011369,2]
[351290342,1738506612489,-500.0,0.00011369,2]
[351290343,1738506612515,-500.0,0.00011369,2]
[351290344,1738506612542,-500.0,0.00011369,2]
[351290345,1738506612568,-500.0,0.00011369,2]
[351290346,1738506612595,-500.0,0.00011369,2]
[351290347,1738506612621,-500.0,0.00011369,2]
[351290348,1738506612647,-500.0,0.00011369,2]
[351290349,1738506612674,-500.0,0.00011369,2]
[351290350,1738506612702,-500.0,0.00011369,2]
[351290351,1738506612731,-955.04,0.00011369,2]
[351290352,1738506612758,-594.87,0.00011369,2]
[351290353,1738506612784,-500.0,0.00011369,2]
[351290354,1738506612810,-3582.4,0.00011369,2]
[351290355,1738506612837,-500.0,0.00011369,2]
[351290356,1738506612867,-500.0,0.00011369,2]
[351290357,1738506612893,-500.0,0.00011369,2]
[351290358,1738506612921,-500.0,0.00011369,2]
[351290359,1738506612948,-603.39,0.00011369,2]
[351290360,1738506612973,-500.0,0.00011369,2]
[351290361,1738506612999,-501.11,0.00011369,2]
[351290362,1738506613026,-7957.34,0.00011369,2]
[351290363,1738506613052,-500.0,0.00011369,2]
[351290364,1738506613077,-762.65,0.00011369,2]
[351290365,1738506613101,-500.0,0.00011369,2]
[351290366,1738506613126,-1262.26,0.00011369,2]
[351290367,1738506613151,-500.0,0.00011369,2]
[351290368,1738506613178,-530.19,0.00011369,2]
[351290369,1738506613203,-500.0,0.00011369,2]
[351290370,1738506613228,-500.0,0.00011369,2]
[351290371,1738506613253,-534.35,0.00011369,2]
[351290372,1738506613278,-606.59,0.00011369,2]
[351290373,1738506613301,-500.0,0.00011369,2]
[351290374,1738506613326,-500.0,0.00011369,2]
[351290375,1738506613352,-1593.86,0.00011369,2]
[351290376,1738506613376,-500.0,0.00011369,2]
[351290377,1738506613401,-500.0,0.00011369,2]
[351290378,1738506613811,-500.0,0.00011369,2]
[351290379,1738506613847,-2238.72,0.00011369,2]
[351290380,1738506613871,-1312.59,0.00011369,2]
[351290381,1738506613894,-500.0,0.00011369,2]
[351290382,1738506613922,-500.0,0.00011369,2]
[351290383,1738506613945,-704.04,0.00011369,2]
[351290384,1738506613972,-1575.06,0.00011369,2]
[351290385,1738506613996,-500.0,0.00011369,2]
[351290386,1738506614022,-7111.9,0.00011369,2]
[351290387,1738506614047,-3200.0,0.000114,4]
[351290388,1738506614072,-376.84,0.00011432,2]
[351290389,1738506614095,-1638.2464205,0.00011492,2]
[351290390,1738506614117,-150.7097855,0.00011495,2]
[351290391,1738506614140,-500.0,0.00011499,2]
[351290392,1738506614164,-4000.0,0.000115,4]
[351290393,1738506614187,-500.0,0.00011505,2]
[351290394,1738506614210,-500.0,0.00011505,2]
[351290395,1738506614233,-368.83,0.00011505,2]
[351290396,1738506614259,-192.77,0.00011505,2]
[351290397,1738506614283,-500.0,0.00011505,2]
[351290398,1738506614307,-500.0,0.00011505,2]
[351290399,1738506614330,-210.43003914,0.00011505,2]
[351290400,1738506614353,-500.0,0.00011505,2]
[351290401,1738506614376,-500.0,0.00011505,2]
[351290402,1738506614399,-500.0,0.00011505,2]
[351290403,1738506614422,-500.0,0.00011505,2]
[351290404,1738506614445,-500.0,0.00011505,2]
[351290405,1738506614467,-500.0,0.00011505,2]
[351290406,1738506614492,-500.0,0.00011505,2]
[351290407,1738506614516,-154.28,0.00011505,2]
[351290408,1738506614541,-500.0,0.00011505,2]
[351290409,1738506614566,-500.0,0.00011505,2]
[351290410,1738506614590,-500.0,0.00011505,2]
[351290411,1738506614613,-500.0,0.00011505,2]
[351290412,1738506614638,-500.0,0.00011505,2]
[351290413,1738506614665,-500.0,0.00011505,2]
[351290414,1738506614689,-500.0,0.00011505,2]
[351290415,1738506614713,-500.0,0.00011505,2]
[351290416,1738506614736,-500.0,0.00011505,2]
[351290417,1738506614759,-500.0,0.00011505,2]
[351290418,1738506614782,-210.82,0.00011505,2]
[351290419,1738506614807,-500.0,0.00011505,2]
[351290420,1738506614829,-548.07,0.00011505,2]
[351290421,1738506614853,-236.43,0.00011505,2]
[351290422,1738506614877,-500.0,0.00011505,2]
[351290423,1738506614901,-1169.34,0.00011505,2]
[351290424,1738506614931,-500.0,0.00011505,2]
[351290425,1738506614954,-500.0,0.00011505,2]
[351290426,1738506614978,-479.26,0.00011505,2]
[351290427,1738506615004,-463.2521679,0.00011505,2]
[351290428,1738506615027,-648.83,0.00011505,2]
[351290429,1738506615049,-507.49,0.00011505,2]
[351290430,1738506615073,-500.0,0.00011505,2]
[351290431,1738506615096,-500.0,0.00011505,2]
[351290432,1738506615120,-500.0,0.00011505,2]
[351290433,1738506615143,-500.0,0.00011505,2]
[351290434,1738506615169,-500.0,0.00011505,2]
[351290435,1738506615194,-500.0,0.00011505,2]
[351290436,1738506615218,-500.0,0.00011505,2]
[351290437,1738506615242,-500.0,0.00011505,2]
[351290438,1738506615265,-500.0,0.00011505,2]
[351290439,1738506615288,-500.0,0.00011505,2]
[351290440,1738506615312,-500.0,0.00011505,2]
[351290441,1738506615334,-500.0,0.00011505,2]
[351290442,1738506615357,-500.0,0.00011505,2]
[351290443,1738506615381,-500.0,0.00011505,2]
[351290444,1738506615404,-500.0,0.00011505,2]
[351290445,1738506615429,-272.75,0.00011505,2]
[351290446,1738506615453,-500.0,0.00011505,2]
[351290447,1738506615475,-500.0,0.00011505,2]
[351290448,1738506615498,-500.0,0.00011505,2]
[351290449,1738506615523,-500.0,0.00011505,2]
[351290450,1738506615547,-500.0,0.00011505,2]
[351290451,1738506615572,-171.97,0.00011505,2]
[351290452,1738506615598,-601.63,0.00011505,2]
[351290453,1738506615624,-1357.53,0.00011505,2]
[351290454,1738506615648,-500.0,0.00011505,2]
[351290455,1738506615676,-500.0,0.00011505,2]
[351290456,1738506615702,-271.5,0.00011505,2]
[351290457,1738506615727,-500.0,0.00011505,2]
[351290458,1738506615755,-500.0,0.00011505,2]
[351290459,1738506615779,-500.0,0.00011505,2]
[351290460,1738506615803,-500.0,0.00011505,2]
[351290461,1738506615829,-500.0,0.00011505,2]
[351290462,1738506615854,-500.0,0.00011505,2]
[351290463,1738506615878,-625.86,0.00011505,2]
[351290464,1738506615902,-500.0,0.00011505,2]
[351290465,1738506615932,-500.0,0.00011505,2]
[351290466,1738506615956,-500.0,0.00011505,2]
[351290467,1738506615980,-333.04,0.00011505,2]
[351290468,1738506616004,-500.0,0.00011505,2]
[351290469,1738506616027,-500.0,0.00011505,2]
[351290470,1738506616050,-500.0,0.00011505,2]
[351290471,1738506616074,-346.62,0.00011505,2]
[351290472,1738506616100,-500.0,0.00011505,2]
[351290473,1738506616123,-1058.01,0.00011505,2]
[351290474,1738506616146,-3099.37,0.00011505,2]
[351290475,1738506616171,-347.57,0.00011505,2]
[351290476,1738506616196,-500.0,0.00011505,2]
[351290477,1738506616219,-500.0,0.00011505,2]
[351290478,1738506616244,-500.0,0.00011505,2]
[351290479,1738506616267,-500.0,0.00011505,2]
[351290480,1738506616290,-500.0,0.00011505,2]
[351290481,1738506616313,-447.68047623,0.00011505,2]
[351290482,1738506616336,-500.0,0.00011505,2]
[351290483,1738506616359,-500.0,0.00011506,2]
[351290484,1738506616382,-608.53,0.00011506,2]
[351290485,1738506616404,-500.0,0.00011506,2]
[351290486,1738506616427,-500.0,0.00011506,2]
[351290487,1738506616451,-573.01,0.00011506,2]